2CCN - Level 2 Cost Centre Name,,9CCN - Level 9 Cost Centre Name,9CCC - Level 9 Cost Centre Code,9AN - Level 9 Account Name,9AC - Level 9 Account Code,Date posted,Date of transaction,,Merchant Name,MerchantCity,Originating Account Name,Originating Account Number,MCC/SIC Code,MCC Description,Original Amount,Currency,Conversion Rate,Billed Amount,DebitCredit,ReferenceNbr,Statement Cycle,AccountName
Gloucester City Council,23UE,TOURISM MARKETING,LT100,MISC FIXTURES AND FITTINGS,3500,2015-09-04,2015-09-02,,WILKO RETAIL LIMIT,GLOUCESTER 14,REDACTED,471565******4015,5722,HOUSEHOLD APPLIANCE STORES,12.5,Pound Sterling (826),1,12.5,Debit,74579155246007278146755,2015-10-02,GLOUCESTER CC
Gloucester City Council,23UE,MEET & GREET,FP309,ADVERTISING AND PUBLICITY,5702,2015-09-09,2015-09-08,,WWW.CLOTHES2ORDER.COM,INTERNET,REDACTED,471565******4015,5691,MEN'S AND WOMEN'S CLOTHING STORES,13.06,Pound Sterling (826),1,13.06,Debit,74745105252070066756446,2015-10-02,GLOUCESTER CC
Gloucester City Council,23UE,MEET & GREET,FP309,ADVERTISING AND PUBLICITY,5702,2015-09-09,2015-09-08,,WWW.COTTONPRINT.CO.UK,INTERNET,REDACTED,471565******4015,2741,MISCELLANEOUS PUBLISHING & PRINTING,-10.27,Pound Sterling (826),1,-10.27,Credit,74678585252070065625703,2015-10-02,GLOUCESTER CC
Gloucester City Council,23UE,TOURISM MARKETING,LT100,SECURITY SERVICES FEES,5351,2015-09-16,2015-09-15,,THE RANGE,GLOUCESTER,REDACTED,471565******4015,5311,DEPARTMENT STORES,17.73,Pound Sterling (826),1,17.73,Debit,74579155259005478895167,2015-10-02,GLOUCESTER CC
Gloucester City Council,23UE,TOURISM MARKETING,LT100,ADVERTISING AND PUBLICITY,5702,2015-09-16,2015-09-15,,STAPLES UK,GLOUCESTER 05,REDACTED,471565******4015,5943,STATIONERY  OFFICE AND SCHOOL SUPPLY STO,134.98,Pound Sterling (826),1,134.98,Debit,74579155259003475602918,2015-10-02,GLOUCESTER CC
Gloucester City Council,23UE,HOMELESSNESS,CH120,BOARD AND LODGING,5515,2015-09-08,2015-09-07,,TRAVELODGE WEBSITE,RESERVATION,REDACTED,471565******1443,3615,TRAVELODGE,62,Pound Sterling (826),1,62,Debit,74424715250298110914192,2015-10-02,GLOUCESTER CC
Gloucester City Council,23UE,HOMELESSNESS,CH120,FEES FOR SERVICES RECEIVED,5350,2015-09-30,2015-09-29,,BOOTS FLU VOUCHERS,INTERNET,REDACTED,471565******1443,5912,DRUG STORES  PHARMACIES,112,Pound Sterling (826),1,112,Debit,74697055273020065866589,2015-10-02,GLOUCESTER CC
Gloucester City Council,23UE,DOCKS COMPLEX - CATERING SERVS,RB110,CATERING PROVISIONS -FOOD,5110,2015-09-18,2015-09-17,,SAINSBURYS SUPERMA,GLOUCESTER QU,REDACTED,471565******8223,5411,GROCERY STORES  SUPERMARKETS,23.25,Pound Sterling (826),1,23.25,Debit,74579155261004375448069,2015-10-02,GLOUCESTER CC
Gloucester City Council,23UE,RUGBY WORLD CUP,LT450,LICENCES,5703,2015-09-07,2015-09-03,,TV LICENSING,3007906071,REDACTED,471565******1326,7392,MANAGEMENT  CONSULTING AND PUBLIC RELATIONS SERVICES,145.5,Pound Sterling (826),1,145.5,Debit,74579155247006971333222,2015-10-02,GLOUCESTER CC
Gloucester City Council,23UE,DIRECTOR RESOURCES,MR102,FEES FOR SERVICES RECEIVED,5350,2015-09-09,2015-09-08,,COOPER & CO SOLICITORS,CANTERBURY,REDACTED,471565******1326,8111,LEGAL SERVICES  ATTORNEYS,120,Pound Sterling (826),1,120,Debit,74678585252070218888067,2015-10-02,GLOUCESTER CC
Gloucester City Council,23UE,DIRECTOR RESOURCES,MR102,CONFERENCE/MEETING EXPENSES,5510,2015-09-14,2015-09-11,,PARK INN BY RADISSON,PETERBOROUGH,REDACTED,471565******1326,7011,LODGING  HOTELS  MOTELS  RESORTS,87.2,Pound Sterling (826),1,87.2,Debit,74745095256000352851238,2015-10-02,GLOUCESTER CC
Gloucester City Council,23UE,DIRECTOR RESOURCES,MR102,CONFERENCE/MEETING EXPENSES,5510,2015-09-14,2015-09-11,,PARK INN BY RADISSON,PETERBOROUGH,REDACTED,471565******1326,7011,LODGING  HOTELS  MOTELS  RESORTS,87.2,Pound Sterling (826),1,87.2,Debit,74745095256000352851246,2015-10-02,GLOUCESTER CC
Gloucester City Council,23UE,DIRECTOR RESOURCES,MR102,CONFERENCE/MEETING EXPENSES,5510,2015-09-14,2015-09-11,,PARK INN BY RADISSON,PETERBOROUGH,REDACTED,471565******1326,7011,LODGING  HOTELS  MOTELS  RESORTS,87.2,Pound Sterling (826),1,87.2,Debit,74745095256000352851253,2015-10-02,GLOUCESTER CC
Gloucester City Council,23UE,DIRECTOR RESOURCES,MR102,CONFERENCE/MEETING EXPENSES,5510,2015-09-14,2015-09-11,,PARK INN BY RADISSON,PETERBOROUGH,REDACTED,471565******1326,7011,LODGING  HOTELS  MOTELS  RESORTS,87.2,Pound Sterling (826),1,87.2,Debit,74745095256000352851261,2015-10-02,GLOUCESTER CC
Gloucester City Council,23UE,RUGBY WORLD CUP,LT450,FEES FOR SERVICES RECEIVED,5350,2015-09-18,2015-09-17,,GLOUCESTER EVENT HIRE,GLOUCESTER,REDACTED,471565******1326,8999,PROFESSIONAL SERVICES NOT ELSEWHERE CLASSIFIED,84,Pound Sterling (826),1,84,Debit,74056575260523003146623,2015-10-02,GLOUCESTER CC
Gloucester City Council,23UE,RUGBY WORLD CUP,LT450,FEES FOR SERVICES RECEIVED,5350,2015-09-21,2015-09-20,,BOOKER LIMITED GLOUCESTER,GLOUCESTER,REDACTED,471565******1326,5811,CATERERS,32.99,Pound Sterling (826),1,32.99,Debit,74463665263912635397204,2015-10-02,GLOUCESTER CC
Gloucester City Council,23UE,RUGBY WORLD CUP,LT450,FEES FOR SERVICES RECEIVED,5350,2015-09-28,2015-09-25,,BRANDON HIRE 061,GLOUCESTER,REDACTED,471565******1326,8911,ENGINEERING  ARCHITECTURAL AND SURVEYING SERVICES,46.39,Pound Sterling (826),1,46.39,Debit,74745095269000040542434,2015-10-02,GLOUCESTER CC
Gloucester City Council,23UE,RUGBY WORLD CUP,LT450,FEES FOR SERVICES RECEIVED,5350,2015-09-28,2015-09-25,,TESCO STORES 2581,GLOUCESTER,REDACTED,471565******1326,5411,GROCERY STORES  SUPERMARKETS,5.35,Pound Sterling (826),1,5.35,Debit,74698175269000201536941,2015-10-02,GLOUCESTER CC
Gloucester City Council,23UE,RUGBY WORLD CUP,LT450,FEES FOR SERVICES RECEIVED,5350,2015-09-28,2015-09-25,,SAINSBURYS S/MKTS,GLOUCESTER 22,REDACTED,471565******1326,5411,GROCERY STORES  SUPERMARKETS,14.73,Pound Sterling (826),1,14.73,Debit,74579155269003475362628,2015-10-02,GLOUCESTER CC
Gloucester City Council,23UE,RUGBY WORLD CUP,LT450,FEES FOR SERVICES RECEIVED,5350,2015-09-28,2015-09-27,,ASDA SUPERSTORE,GLOUCESTER,REDACTED,471565******1326,5411,GROCERY STORES  SUPERMARKETS,33.74,Pound Sterling (826),1,33.74,Debit,74698175271000902113715,2015-10-02,GLOUCESTER CC
Gloucester City Council,23UE,SAFER STRONGER COMMUNITIES,FP841,OTHER MINOR SUPPLIES SERVICES,5590,2015-09-03,2015-09-02,,Amazon UK Marketplace,800-279-6620,REDACTED,471565******8476,5999,MISCELLANEOUS AND RETAIL STORES,40.97,Pound Sterling (826),1,40.97,Debit,74313225245000905022534,2015-10-02,GLOUCESTER CC
Gloucester City Council,23UE,SAFER STRONGER COMMUNITIES,FP846,OTHER MINOR SUPPLIES SERVICES,5590,2015-09-09,2015-09-08,,SAINSBURYS SUPERMA,GLOUCESTER QU,REDACTED,471565******8476,5411,GROCERY STORES  SUPERMARKETS,115,Pound Sterling (826),1,115,Debit,74579155252001573066595,2015-10-02,GLOUCESTER CC
Gloucester City Council,23UE,HEALTH ADMINISTRATION,HA200,OTHER MINOR SUPPLIES SERVICES,5950,2015-09-17,2015-09-16,,B & Q,GLOUCESTER GL,REDACTED,471565******8476,5211,LUMBER AND BUILDING MATERIALS STORES,68,Pound Sterling (826),1,68,Debit,74579155260009079533760,2015-10-02,GLOUCESTER CC
Gloucester City Council,23UE,COMMUNITY SAFETY PROJECTS,FP500,OTHER MINOR SUPPLIES SERVICES,5590,2015-10-01,2015-09-30,,ARGOS LTD,GLOUCESTER,REDACTED,471565******8476,5310,DISCOUNT STORES,14.24,Pound Sterling (826),1,14.24,Debit,74579155274002977116535,2015-10-02,GLOUCESTER CC
Gloucester City Council,23UE,HOUSING STRATEGY & ENABLING,CH110,PUBLIC TRANSPORTATION,4061,2015-09-07,2015-09-04,,TRAINLINE,03332 022 222,REDACTED,471565******3663,4112,PASSENGER RAILWAYS,52.84,Pound Sterling (826),1,52.84,Debit,74998865247535591036929,2015-10-02,GLOUCESTER CC
Gloucester City Council,23UE,CITY MUSEUM AND ART GALLERY,LM200,PUBLIC TRANSPORTATION,4061,2015-09-07,2015-09-04,,FGW SELF SERVICE,GLOUCESTER,REDACTED,471565******9991,4112,PASSENGER RAILWAYS,4.7,Pound Sterling (826),1,4.7,Debit,74424715247160345766522,2015-10-02,GLOUCESTER CC
Gloucester City Council,23UE,FOLK MUSEUM,LM210,CATERING PROVISIONS -FOOD,5110,2015-09-10,2015-09-09,,BOOKER LIMITED GLOUCESTER,GLOUCESTER,REDACTED,471565******9991,5811,CATERERS,185.78,Pound Sterling (826),1,185.78,Debit,74463665252912526921123,2015-10-02,GLOUCESTER CC
Gloucester City Council,23UE,FOLK MUSEUM,LM210,CATERING PROVISIONS -FOOD,5110,2015-09-10,2015-09-09,,BOOKER LIMITED GLOUCESTER,GLOUCESTER,REDACTED,471565******9991,5811,CATERERS,21.98,Pound Sterling (826),1,21.98,Debit,74463665252912526922022,2015-10-02,GLOUCESTER CC
Gloucester City Council,23UE,FOLK MUSEUM,LM210,PUBLICATIONS FOR SALE,5064,2015-09-11,2015-09-10,,HANCOCK CASH AND CARRY LT,LOUGHBOROUGH,REDACTED,471565******9991,5300,WHOLESALE CLUBS,197.09,Pound Sterling (826),1,197.09,Debit,74463655253892544825847,2015-10-02,GLOUCESTER CC
Gloucester City Council,23UE,FOLK MUSEUM,LM210,PUBLICATIONS FOR SALE,5064,2015-09-11,2015-09-10,,HANCOCK CASH AND CARRY LT,LOUGHBOROUGH,REDACTED,471565******9991,5300,WHOLESALE CLUBS,193.88,Pound Sterling (826),1,193.88,Debit,74463655253892544825938,2015-10-02,GLOUCESTER CC
Gloucester City Council,23UE,FOLK MUSEUM,LM210,PUBLICATIONS FOR SALE,5064,2015-09-14,2015-09-13,,HANCOCK CASH AND CARRY LT,LOUGHBOROUGH,REDACTED,471565******9991,5300,WHOLESALE CLUBS,190.97,Pound Sterling (826),1,190.97,Debit,74463655256872579300517,2015-10-02,GLOUCESTER CC
Gloucester City Council,23UE,ARTS EDUCATIONAL PROMOTIONS,LA610,OPERATIONAL EQUIPMENT <5000,5012,2015-09-16,2015-09-15,,FASTHOSTS INTERNET,3330142700,REDACTED,471565******9991,4816,COMPUTER NETWORK/INFORMATION SERVICES,19.2,Pound Sterling (826),1,19.2,Debit,74830505258295345272821,2015-10-02,GLOUCESTER CC
Gloucester City Council,23UE,ARTS EDUCATIONAL PROMOTIONS,LA610,OPERATIONAL EQUIPMENT <5000,5012,2015-09-22,2015-09-21,,FASTHOSTS INTERNET,3330142700,REDACTED,471565******9991,4816,COMPUTER NETWORK/INFORMATION SERVICES,82.79,Pound Sterling (826),1,82.79,Debit,74830505264295397765112,2015-10-02,GLOUCESTER CC
Gloucester City Council,23UE,GUILDHALL BAR AND CAF�,LA210,CATERING PROVISIONS -FOOD,5110,2015-09-10,2015-09-09,,ALDI,GLOUCESTER,REDACTED,471565******2470,5411,GROCERY STORES  SUPERMARKETS,44.89,Pound Sterling (826),1,44.89,Debit,74019475252495000748660,2015-10-02,GLOUCESTER CC
Gloucester City Council,23UE,GUILDHALL BAR AND CAF�,LA210,CATERING PROVISIONS -FOOD,5110,2015-09-14,2015-09-11,,ASDA SUPERSTORE,GLOUCESTER,REDACTED,471565******2470,5411,GROCERY STORES  SUPERMARKETS,37.62,Pound Sterling (826),1,37.62,Debit,74698175255000204243236,2015-10-02,GLOUCESTER CC
Gloucester City Council,23UE,GUILDHALL BAR AND CAF�,LA210,CATERING PROVISIONS -FOOD,5110,2015-09-15,2015-09-14,,ALDI,GLOUCESTER,REDACTED,471565******2470,5411,GROCERY STORES  SUPERMARKETS,5.4,Pound Sterling (826),1,5.4,Debit,74019475258495000838309,2015-10-02,GLOUCESTER CC
Gloucester City Council,23UE,GUILDHALL BAR AND CAF�,LA210,CATERING PROVISIONS -FOOD,5110,2015-09-17,2015-09-16,,ASDA SUPERSTORE,GLOUCESTER,REDACTED,471565******2470,5411,GROCERY STORES  SUPERMARKETS,39.05,Pound Sterling (826),1,39.05,Debit,74698175260030199273925,2015-10-02,GLOUCESTER CC
Gloucester City Council,23UE,GUILDHALL BAR AND CAF�,LA210,CATERING PROVISIONS -FOOD,5110,2015-09-18,2015-09-17,,ICELAND,GLOUCESTER,REDACTED,471565******2470,5411,GROCERY STORES  SUPERMARKETS,16,Pound Sterling (826),1,16,Debit,74698165261040117537657,2015-10-02,GLOUCESTER CC
Gloucester City Council,23UE,GUILDHALL BAR AND CAF�,LA210,CATERING PROVISIONS -FOOD,5110,2015-09-18,2015-09-17,,ASDA SUPERSTORE,GLOUCESTER,REDACTED,471565******2470,5411,GROCERY STORES  SUPERMARKETS,93.93,Pound Sterling (826),1,93.93,Debit,74698175261040209389180,2015-10-02,GLOUCESTER CC
Gloucester City Council,23UE,GUILDHALL BAR AND CAF�,LA210,CATERING PROVISIONS -LIQUOR,5111,2015-09-21,2015-09-18,,SAINSBURYS S/MKTS,GLOUCESTER 22,REDACTED,471565******2470,5411,GROCERY STORES  SUPERMARKETS,27.6,Pound Sterling (826),1,27.6,Debit,74579155262008071291276,2015-10-02,GLOUCESTER CC
Gloucester City Council,23UE,GUILDHALL BAR AND CAF�,LA210,CATERING PROVISIONS -FOOD,5110,2015-09-22,2015-09-21,,ASDA SUPERSTORE,GLOUCESTER,REDACTED,471565******2470,5411,GROCERY STORES  SUPERMARKETS,104.29,Pound Sterling (826),1,104.29,Debit,74698175265060176953400,2015-10-02,GLOUCESTER CC
Gloucester City Council,23UE,GUILDHALL BAR AND CAF�,LA210,CATERING PROVISIONS -FOOD,5110,2015-09-24,2015-09-23,,ICELAND,GLOUCESTER,REDACTED,471565******2470,5411,GROCERY STORES  SUPERMARKETS,30,Pound Sterling (826),1,30,Debit,74698165267080116246540,2015-10-02,GLOUCESTER CC
Gloucester City Council,23UE,GUILDHALL BAR AND CAF�,LA210,CATERING PROVISIONS -FOOD,5110,2015-09-24,2015-09-23,,ASDA SUPERSTORE,GLOUCESTER,REDACTED,471565******2470,5411,GROCERY STORES  SUPERMARKETS,43,Pound Sterling (826),1,43,Debit,74698175267080200801134,2015-10-02,GLOUCESTER CC
Gloucester City Council,23UE,GUILDHALL BAR AND CAF�,LA210,CATERING PROVISIONS -FOOD,5110,2015-09-28,2015-09-25,,TESCO STORE 2581,GLOUCESTER,REDACTED,471565******2470,5411,GROCERY STORES  SUPERMARKETS,14.39,Pound Sterling (826),1,14.39,Debit,74697055269000201560037,2015-10-02,GLOUCESTER CC
Gloucester City Council,23UE,GUILDHALL BAR AND CAF�,LA210,CATERING PROVISIONS -FOOD,5110,2015-09-28,2015-09-25,,ICELAND,GLOUCESTER,REDACTED,471565******2470,5411,GROCERY STORES  SUPERMARKETS,12,Pound Sterling (826),1,12,Debit,74698165269000125934710,2015-10-02,GLOUCESTER CC
Gloucester City Council,23UE,GUILDHALL BAR AND CAF�,LA210,CATERING PROVISIONS -FOOD,5110,2015-09-28,2015-09-25,,ASDA SUPERSTORE,GLOUCESTER,REDACTED,471565******2470,5411,GROCERY STORES  SUPERMARKETS,108.5,Pound Sterling (826),1,108.5,Debit,74698175269000237092182,2015-10-02,GLOUCESTER CC
Gloucester City Council,23UE,GUILDHALL BAR AND CAF�,LA210,CATERING PROVISIONS -FOOD,5110,2015-09-28,2015-09-27,,ASDA SUPERSTORE,GLOUCESTER,REDACTED,471565******2470,5411,GROCERY STORES  SUPERMARKETS,8.15,Pound Sterling (826),1,8.15,Debit,74698175271000902126105,2015-10-02,GLOUCESTER CC
Gloucester City Council,23UE,BLACKFRIARS CATERING,LA220,CATERING PROVISIONS -FOOD,5110,2015-09-29,2015-09-28,,BOOKER LIMITED GLOUCESTER,GLOUCESTER,REDACTED,471565******2470,5811,CATERERS,70.25,Pound Sterling (826),1,70.25,Debit,74463665271912714616862,2015-10-02,GLOUCESTER CC
Gloucester City Council,23UE,GUILDHALL BAR AND CAF�,LA210,CATERING PROVISIONS -FOOD,5110,2015-09-29,2015-09-28,,ALDI,GLOUCESTER,REDACTED,471565******2470,5411,GROCERY STORES  SUPERMARKETS,17.41,Pound Sterling (826),1,17.41,Debit,74019475272495000790791,2015-10-02,GLOUCESTER CC
Gloucester City Council,23UE,BLACKFRIARS CATERING,LA220,HIRE OF EQUIPMENT,5020,2015-09-30,2015-09-29,,ALDI,GLOUCESTER,REDACTED,471565******2470,5411,GROCERY STORES  SUPERMARKETS,39.99,Pound Sterling (826),1,39.99,Debit,74019475272495000671785,2015-10-02,GLOUCESTER CC
Gloucester City Council,23UE,VEHICLES,RS140,VEHICLE LICENCES,4015,2015-09-09,2015-09-08,,WWW.DVLA.GOV.UK,VEHICLE LICEN,REDACTED,471565******4841,9399,GOVERNMENT SERVICES NOT ELSEWHERE CLASSIFIED,232.5,Pound Sterling (826),1,232.5,Debit,74579155252007174393486,2015-10-02,GLOUCESTER CC
Gloucester City Council,23UE,GREEN TRANSPORT POLICY,PJ130,PUBLIC TRANSPORTATION,4061,2015-09-10,2015-09-09,,TRAINLINE,RAIL TICKETS,REDACTED,471565******4841,4112,PASSENGER RAILWAYS,77.01,Pound Sterling (826),1,77.01,Debit,74998865252535675015346,2015-10-02,GLOUCESTER CC
Gloucester City Council,23UE,COUNCIL STREETCARE TEAM,HI101,VOCATIONAL TRAINING,2970,2015-09-10,2015-09-09,,TRAINLINE,RAIL TICKETS,REDACTED,471565******4841,4112,PASSENGER RAILWAYS,39.98,Pound Sterling (826),1,39.98,Debit,74998865252535675016179,2015-10-02,GLOUCESTER CC
Gloucester City Council,23UE,MEMBERS SUPPORT,RC300,PUBLIC TRANSPORTATION,4061,2015-09-10,2015-09-09,,TRAINLINE,RAIL TICKETS,REDACTED,471565******4841,4112,PASSENGER RAILWAYS,171.46,Pound Sterling (826),1,171.46,Debit,74998865252535675011121,2015-10-02,GLOUCESTER CC
Gloucester City Council,23UE,PROCUREMENT MANAGEMENT,RP100,PUBLIC TRANSPORTATION,4061,2015-09-11,2015-09-10,,TRAINLINE,RAIL TICKETS,REDACTED,471565******4841,4112,PASSENGER RAILWAYS,242.25,Pound Sterling (826),1,242.25,Debit,74998865253536692764113,2015-10-02,GLOUCESTER CC
Gloucester City Council,23UE,PLANNING POLICY,PT300,VOCATIONAL TRAINING,2970,2015-09-15,2015-09-14,,TRAINLINE,RAIL TICKETS,REDACTED,471565******4841,4112,PASSENGER RAILWAYS,25.86,Pound Sterling (826),1,25.86,Debit,74998865257536757959422,2015-10-02,GLOUCESTER CC
Gloucester City Council,23UE,POLLUTION CONTROL,HE300,TRAVEL TICKETS,5077,2015-09-16,2015-09-15,,TRAINLINE,RAIL TICKETS,REDACTED,471565******4841,4112,PASSENGER RAILWAYS,177.58,Pound Sterling (826),1,177.58,Debit,74998865258536776883685,2015-10-02,GLOUCESTER CC
Gloucester City Council,23UE,MANAGING DIRECTOR,RE100,PUBLIC TRANSPORTATION,4061,2015-09-16,2015-09-15,,TRAINLINE,RAIL TICKETS,REDACTED,471565******4841,4112,PASSENGER RAILWAYS,72.22,Pound Sterling (826),1,72.22,Debit,74998865258536776891761,2015-10-02,GLOUCESTER CC
Gloucester City Council,23UE,MEMBERS SUPPORT,RC300,PUBLIC TRANSPORTATION,4061,2015-09-16,2015-09-15,,TRAINLINE,RAIL TICKETS,REDACTED,471565******4841,4112,PASSENGER RAILWAYS,160.24,Pound Sterling (826),1,160.24,Debit,74998865258536776891175,2015-10-02,GLOUCESTER CC
Gloucester City Council,23UE,DEMOCRATIC SERVICES,RS100,PUBLIC TRANSPORTATION,4061,2015-09-18,2015-09-17,,TRAINLINE,RAIL TICKETS,REDACTED,471565******4841,4112,PASSENGER RAILWAYS,9.95,Pound Sterling (826),1,9.95,Debit,74998865260537814869716,2015-10-02,GLOUCESTER CC
Gloucester City Council,23UE,POLLUTION CONTROL,HE300,TRAVEL TICKETS,5077,2015-09-23,2015-09-22,,TRAINLINE,RAIL TICKETS,REDACTED,471565******4841,4112,PASSENGER RAILWAYS,72.22,Pound Sterling (826),1,72.22,Debit,74998865265537898759473,2015-10-02,GLOUCESTER CC
Gloucester City Council,23UE,GF BALANCE SHEET,ZX100,JOHN WARD CHARITY DEBTOR,0323,2015-09-23,2015-09-22,,Amazon UK Retail,AMAZON.CO.UK,REDACTED,471565******4841,5969,ALL OTHER DIRECT MARKETERS,209,Pound Sterling (826),1,209,Debit,74313225265000740021183,2015-10-02,GLOUCESTER CC
Gloucester City Council,23UE,DOG WARDEN,HE400,PUBLIC TRANSPORTATION,4061,2015-09-24,2015-09-23,,TRAINLINE,RAIL TICKETS,REDACTED,471565******4841,4112,PASSENGER RAILWAYS,9.95,Pound Sterling (826),1,9.95,Debit,74998865266537916882678,2015-10-02,GLOUCESTER CC
Gloucester City Council,23UE,ENVIRONMENTAL PLANNING,LM340,PUBLIC TRANSPORTATION,4061,2015-09-24,2015-09-23,,TRAINLINE,RAIL TICKETS,REDACTED,471565******4841,4112,PASSENGER RAILWAYS,17.59,Pound Sterling (826),1,17.59,Debit,74998865266537916885069,2015-10-02,GLOUCESTER CC
Gloucester City Council,23UE,POLLUTION CONTROL,HE300,TRAVEL TICKETS,5077,2015-09-30,2015-09-29,,TRAINLINE,RAIL TICKETS,REDACTED,471565******4841,4112,PASSENGER RAILWAYS,171.46,Pound Sterling (826),1,171.46,Debit,74998865272538020506197,2015-10-02,GLOUCESTER CC
Gloucester City Council,23UE,PLANNING POLICY,PT300,PUBLIC TRANSPORTATION,4061,2015-09-30,2015-09-29,,TRAINLINE,RAIL TICKETS,REDACTED,471565******4841,4112,PASSENGER RAILWAYS,72.22,Pound Sterling (826),1,72.22,Debit,74998865272538020507021,2015-10-02,GLOUCESTER CC
Gloucester City Council,23UE,GUILDHALL EVENTS,LA200,FEES FOR SERVICES RECEIVED,5350,2015-09-03,2015-09-02,,PAYPAL *TRAINLINE,35314369001,REDACTED,471565******7657,4789,TRANSPORTATION SERVICES NOT ELSEWHERE CLASSIFIED,137.15,Pound Sterling (826),1,137.15,Debit,74998865245534543256547,2015-10-02,GLOUCESTER CC
Gloucester City Council,23UE,GLOUCESTER GUILDHALL,LA100,GENERAL REPAIR/MAINT BUILDINGS,3000,2015-09-04,2015-09-03,,TERRYS TEXTILES LT,NEWCASTLE-UND,REDACTED,471565******7657,5949,SEWING  NEEDLEWORK  FABRIC AND PIECE GOODS STORES,24.38,Pound Sterling (826),1,24.38,Debit,74830505246174170525436,2015-10-02,GLOUCESTER CC
Gloucester City Council,23UE,GUILDHALL EVENTS,LA200,ADVERTISING AND PUBLICITY,5702,2015-09-04,2015-09-03,,TWITTER*ADVERTISING,TWITTER.COM,REDACTED,471565******7657,7311,ADVERTISING SERVICES,0.58,Pound Sterling (826),1,0.58,Debit,74313225246000263467783,2015-10-02,GLOUCESTER CC
Gloucester City Council,23UE,GUILDHALL EVENTS,LA200,FEES FOR SERVICES RECEIVED,5350,2015-09-07,2015-09-06,,ITUNES.COM/BILL,ITUNES.COM,REDACTED,471565******7657,5735,RECORD SHOPS,7.99,Pound Sterling (826),1,7.99,Debit,74313225249000944381020,2015-10-02,GLOUCESTER CC
Gloucester City Council,23UE,GUILDHALL EVENTS,LA200,FEES FOR SERVICES RECEIVED,5350,2015-09-07,2015-09-06,,ITUNES.COM/BILL,ITUNES.COM,REDACTED,471565******7657,5735,RECORD SHOPS,0.79,Pound Sterling (826),1,0.79,Debit,74313225249000944407841,2015-10-02,GLOUCESTER CC
Gloucester City Council,23UE,GUILDHALL CINEMA,LA202,FEES FOR SERVICES RECEIVED,5350,2015-09-10,2015-09-09,,MIPERMIT PARKING-DOM,INTERNET,REDACTED,471565******7657,7523,AUTOMOBILE PARKING LOTS AND GARAGES,10,Pound Sterling (826),1,10,Debit,74745105253080065871848,2015-10-02,GLOUCESTER CC
Gloucester City Council,23UE,BLACKFRIARS,LA609,OPERATIONAL EQUIPMENT <5000,5012,2015-09-10,2015-09-09,,ARGOS LTD,GLOUCESTER,REDACTED,471565******7657,5310,DISCOUNT STORES,53.73,Pound Sterling (826),1,53.73,Debit,74579155253008474445025,2015-10-02,GLOUCESTER CC
Gloucester City Council,23UE,GUILDHALL BAR AND CAF�,LA210,FEES FOR SERVICES RECEIVED,5350,2015-09-10,2015-09-09,,PAYPAL *PROPACPACKA,35314369001,REDACTED,471565******7657,7311,ADVERTISING SERVICES,33.64,Pound Sterling (826),1,33.64,Debit,74998765252535736469633,2015-10-02,GLOUCESTER CC
Gloucester City Council,23UE,GUILDHALL BAR AND CAF�,LA210,FEES FOR SERVICES RECEIVED,5350,2015-09-10,2015-09-09,,PAYPAL *HEATONPACKA,35314369001,REDACTED,471565******7657,8931,ACCOUNTING  AUDITING AND BOOKKEEPING SERVICES,31.84,Pound Sterling (826),1,31.84,Debit,74998765252535736518207,2015-10-02,GLOUCESTER CC
Gloucester City Council,23UE,GUILDHALL CINEMA,LA202,CATERING PROVISIONS -LIQUOR,5111,2015-09-11,2015-09-10,,BOOKER LIMITED GLOUCESTER,GLOUCESTER,REDACTED,471565******7657,5811,CATERERS,82.06,Pound Sterling (826),1,82.06,Debit,74463665253912538235248,2015-10-02,GLOUCESTER CC
Gloucester City Council,23UE,GUILDHALL CINEMA,LA202,CATERING PROVISIONS -LIQUOR,5111,2015-09-11,2015-09-10,,WM MORRISON STORE,575 GLOUCESTE,REDACTED,471565******7657,5411,GROCERY STORES  SUPERMARKETS,80,Pound Sterling (826),1,80,Debit,74579155254001277402359,2015-10-02,GLOUCESTER CC
Gloucester City Council,23UE,BLACKFRIARS,LA609,FEES FOR SERVICES RECEIVED,5350,2015-09-15,2015-09-14,,MARKS & SPENCER PLC,GLOUCESTER,REDACTED,471565******7657,5411,GROCERY STORES  SUPERMARKETS,20,Pound Sterling (826),1,20,Debit,74698165258010111630878,2015-10-02,GLOUCESTER CC
Gloucester City Council,23UE,GUILDHALL EVENTS,LA200,FEES FOR SERVICES RECEIVED,5350,2015-09-15,2015-09-14,,MIPERMIT PARKING-DOM,INTERNET,REDACTED,471565******7657,7523,AUTOMOBILE PARKING LOTS AND GARAGES,10,Pound Sterling (826),1,10,Debit,74745105258010125886101,2015-10-02,GLOUCESTER CC
Gloucester City Council,23UE,BLACKFRIARS CATERING,LA220,FEES FOR SERVICES RECEIVED,5350,2015-09-15,2015-09-14,,B&M RETAIL LTD,HS GLOUCESTER,REDACTED,471565******7657,5310,DISCOUNT STORES,19.44,Pound Sterling (826),1,19.44,Debit,74579155258005676529585,2015-10-02,GLOUCESTER CC
Gloucester City Council,23UE,GUILDHALL CINEMA,LA202,ADVERTISING AND PUBLICITY,5702,2015-09-22,2015-09-21,,WWW.INSTANTPRINT.C,01709 382202,REDACTED,471565******7657,7338,QUICK-COPY AND REPRODUCTION SERVICES,27.99,Pound Sterling (826),1,27.99,Debit,74579155265008374241900,2015-10-02,GLOUCESTER CC
Gloucester City Council,23UE,GUILDHALL EVENTS,LA200,FEES FOR SERVICES RECEIVED,5350,2015-09-23,2015-09-22,,MIPERMIT PARKING-DOM,INTERNET,REDACTED,471565******7657,7523,AUTOMOBILE PARKING LOTS AND GARAGES,10,Pound Sterling (826),1,10,Debit,74745105266070064121241,2015-10-02,GLOUCESTER CC
Gloucester City Council,23UE,GLOUCESTER GUILDHALL,LA100,GENERAL REPAIR/MAINT BUILDINGS,3000,2015-09-23,2015-09-22,,WILKO RETAIL LIMIT,GLOUCESTER 14,REDACTED,471565******7657,5722,HOUSEHOLD APPLIANCE STORES,27.81,Pound Sterling (826),1,27.81,Debit,74579155266008671055275,2015-10-02,GLOUCESTER CC
Gloucester City Council,23UE,GUILDHALL CINEMA,LA202,ADVERTISING AND PUBLICITY,5702,2015-09-24,2015-09-23,,WWW.INSTANTPRINT.C,01709 382202,REDACTED,471565******7657,7338,QUICK-COPY AND REPRODUCTION SERVICES,-27.99,Pound Sterling (826),1,-27.99,Credit,74579155267000175042049,2015-10-02,GLOUCESTER CC
Gloucester City Council,23UE,BLACKFRIARS,LA609,GENERAL REPAIR/MAINT BUILDINGS,3000,2015-09-25,2015-09-24,,B & Q,GLOUCESTER GL,REDACTED,471565******7657,5211,LUMBER AND BUILDING MATERIALS STORES,25.95,Pound Sterling (826),1,25.95,Debit,74579155268006471641268,2015-10-02,GLOUCESTER CC
Gloucester City Council,23UE,GUILDHALL EVENTS,LA200,FEES FOR SERVICES RECEIVED,5350,2015-09-28,2015-09-26,,MIPERMIT PARKING-DOM,INTERNET,REDACTED,471565******7657,7523,AUTOMOBILE PARKING LOTS AND GARAGES,30,Pound Sterling (826),1,30,Debit,74745105270000452979300,2015-10-02,GLOUCESTER CC
Gloucester City Council,23UE,GUILDHALL EVENTS,LA200,FEES FOR SERVICES RECEIVED,5350,2015-09-28,2015-09-26,,MIPERMIT PARKING-DOM,INTERNET,REDACTED,471565******7657,7523,AUTOMOBILE PARKING LOTS AND GARAGES,20,Pound Sterling (826),1,20,Debit,74745105270000452979474,2015-10-02,GLOUCESTER CC
Gloucester City Council,23UE,GUILDHALL EVENTS,LA200,FEES FOR SERVICES RECEIVED,5350,2015-09-28,2015-09-26,,MIPERMIT PARKING-DOM,INTERNET,REDACTED,471565******7657,7523,AUTOMOBILE PARKING LOTS AND GARAGES,10,Pound Sterling (826),1,10,Debit,74745105270000452979433,2015-10-02,GLOUCESTER CC
Gloucester City Council,23UE,GUILDHALL EVENTS,LA200,FEES FOR SERVICES RECEIVED,5350,2015-09-28,2015-09-26,,MIPERMIT PARKING-DOM,INTERNET,REDACTED,471565******7657,7523,AUTOMOBILE PARKING LOTS AND GARAGES,10,Pound Sterling (826),1,10,Debit,74745105270000452979516,2015-10-02,GLOUCESTER CC
Gloucester City Council,23UE,GUILDHALL EVENTS,LA200,FEES FOR SERVICES RECEIVED,5350,2015-09-28,2015-09-27,,MIPERMIT PARKING-DOM,INTERNET,REDACTED,471565******7657,7523,AUTOMOBILE PARKING LOTS AND GARAGES,30,Pound Sterling (826),1,30,Debit,74745105271000785015664,2015-10-02,GLOUCESTER CC
Gloucester City Council,23UE,GUILDHALL EVENTS,LA200,FEES FOR SERVICES RECEIVED,5350,2015-09-28,2015-09-27,,MIPERMIT PARKING-DOM,INTERNET,REDACTED,471565******7657,7523,AUTOMOBILE PARKING LOTS AND GARAGES,10,Pound Sterling (826),1,10,Debit,74745105271000785015714,2015-10-02,GLOUCESTER CC
Gloucester City Council,23UE,GUILDHALL EVENTS,LA200,FEES FOR SERVICES RECEIVED,5350,2015-09-28,2015-09-27,,MIPERMIT PARKING-DOM,INTERNET,REDACTED,471565******7657,7523,AUTOMOBILE PARKING LOTS AND GARAGES,10,Pound Sterling (826),1,10,Debit,74745105271000785015748,2015-10-02,GLOUCESTER CC
Gloucester City Council,23UE,GUILDHALL EVENTS,LA200,FEES FOR SERVICES RECEIVED,5350,2015-09-28,2015-09-27,,MIPERMIT PARKING-DOM,INTERNET,REDACTED,471565******7657,7523,AUTOMOBILE PARKING LOTS AND GARAGES,10,Pound Sterling (826),1,10,Debit,74745105271000785015771,2015-10-02,GLOUCESTER CC
Gloucester City Council,23UE,GUILDHALL EVENTS,LA200,FEES FOR SERVICES RECEIVED,5350,2015-09-28,2015-09-27,,MIPERMIT PARKING-DOM,INTERNET,REDACTED,471565******7657,7523,AUTOMOBILE PARKING LOTS AND GARAGES,10,Pound Sterling (826),1,10,Debit,74745105271000785015904,2015-10-02,GLOUCESTER CC
Gloucester City Council,23UE,GUILDHALL EVENTS,LA200,FEES FOR SERVICES RECEIVED,5350,2015-09-28,2015-09-27,,MIPERMIT PARKING-DOM,INTERNET,REDACTED,471565******7657,7523,AUTOMOBILE PARKING LOTS AND GARAGES,10,Pound Sterling (826),1,10,Debit,74745105271000785015912,2015-10-02,GLOUCESTER CC
Gloucester City Council,23UE,GUILDHALL EVENTS,LA200,FEES FOR SERVICES RECEIVED,5350,2015-09-28,2015-09-27,,MIPERMIT PARKING-DOM,INTERNET,REDACTED,471565******7657,7523,AUTOMOBILE PARKING LOTS AND GARAGES,10,Pound Sterling (826),1,10,Debit,74745105271000785015979,2015-10-02,GLOUCESTER CC
Gloucester City Council,23UE,GUILDHALL EVENTS,LA200,FEES FOR SERVICES RECEIVED,5350,2015-09-30,2015-09-29,,MIPERMIT PARKING-DOM,INTERNET,REDACTED,471565******7657,7523,AUTOMOBILE PARKING LOTS AND GARAGES,10,Pound Sterling (826),1,10,Debit,74745105273020066408097,2015-10-02,GLOUCESTER CC
Gloucester City Council,23UE,GUILDHALL BAR AND CAF�,LA210,FEES FOR SERVICES RECEIVED,5350,2015-09-30,2015-09-29,,PAYPAL *PROPACPACKA,35314369001,REDACTED,471565******7657,7311,ADVERTISING SERVICES,8.41,Pound Sterling (826),1,8.41,Debit,74998765272538080885426,2015-10-02,GLOUCESTER CC
Gloucester City Council,23UE,GUILDHALL EVENTS,LA200,OPERATIONAL EQUIPMENT <5000,5012,2015-10-01,2015-09-30,,WILKO RETAIL LIMIT,GLOUCESTER 14,REDACTED,471565******7657,5722,HOUSEHOLD APPLIANCE STORES,10.38,Pound Sterling (826),1,10.38,Debit,74579155274001471280805,2015-10-02,GLOUCESTER CC
Gloucester City Council,23UE,GUILDHALL EVENTS,LA200,ADVERTISING AND PUBLICITY,5702,2015-10-01,2015-09-30,,FACEBOOK M4H9S7SD72,www.fb.me/ads,REDACTED,471565******7657,7311,ADVERTISING SERVICES,49.1,Pound Sterling (826),1,49.1,Debit,74987505273326012191234,2015-10-02,GLOUCESTER CC
Gloucester City Council,23UE,GLOUCESTER GUILDHALL,LA100,PUBLICATIONS,5060,2015-10-01,2015-09-30,,PAYPAL *EVENTSINDUS,35314369001,REDACTED,471565******7657,8999,PROFESSIONAL SERVICES NOT ELSEWHERE CLASSIFIED,25,Pound Sterling (826),1,25,Debit,74998765273538101295521,2015-10-02,GLOUCESTER CC
Gloucester City Council,23UE,GLOUCESTER GUILDHALL,LA100,GENERAL REPAIR/MAINT BUILDINGS,3000,2015-10-02,2015-10-01,,WWW.EASYLOCKS.CO.UK,8448709462,REDACTED,471565******7657,5251,HARDWARE STORES,326.74,Pound Sterling (826),1,326.74,Debit,74830505274174179504379,2015-10-02,GLOUCESTER CC
Gloucester City Council,23UE,BUSINESS TRANSFORMATION & TECH,RT700,OTHER MINOR SUPPLIES SERVICES,5590,2015-09-09,2015-09-08,,123 REG R/T,8712309525,REDACTED,471565******3318,5968,CONTINUITY/SUBSCRIPTION MERCHANTS,8.38,Pound Sterling (826),1,8.38,Debit,74056575252031000131358,2015-10-02,GLOUCESTER CC
Gloucester City Council,23UE,BUSINESS TRANSFORMATION & TECH,RT700,COMPUTER CONSUMABLES,5422,2015-09-09,2015-09-08,,Amazon UK Marketplace,800-279-6620,REDACTED,471565******3318,5999,MISCELLANEOUS AND RETAIL STORES,69.88,Pound Sterling (826),1,69.88,Debit,74313225251000920013196,2015-10-02,GLOUCESTER CC
Gloucester City Council,23UE,BUSINESS PLANNING & PERFORMANC,RL500,FEES FOR SERVICES RECEIVED,5350,2015-09-10,2015-09-09,,BIZ STATIONERY SUPERSTORE,GLOUCESTER,REDACTED,471565******3318,5111,STATIONERY OFFICE SUPPLIES PRINTING AND WRITING PAPER,10.47,Pound Sterling (826),1,10.47,Debit,74463655252912526099343,2015-10-02,GLOUCESTER CC
Gloucester City Council,23UE,BUSINESS TRANSFORMATION & TECH,RT700,COMPUTER CONSUMABLES,5422,2015-09-18,2015-09-17,,PC WORLD,GLOUCESTER,REDACTED,471565******3318,5734,COMPUTER SOFTWARE STORES,39.98,Pound Sterling (826),1,39.98,Debit,74698165261040056666269,2015-10-02,GLOUCESTER CC
Gloucester City Council,23UE,BUSINESS PLANNING & PERFORMANC,RL500,OTHER MINOR SUPPLIES SERVICES,5590,2015-09-30,2015-09-29,,ROYALINSTIT,44207314279,REDACTED,471565******3318,8398,CHARITABLE AND SOCIAL SERVICE ORGANIZATIONS,38,Pound Sterling (826),1,38,Debit,74998765272538079324916,2015-10-02,GLOUCESTER CC
Gloucester City Council,23UE,BUSINESS PLANNING & PERFORMANC,RL500,FEES FOR SERVICES RECEIVED,5350,2015-09-30,2015-09-29,,Amazon UK Marketplace,800-279-6620,REDACTED,471565******3318,5999,MISCELLANEOUS AND RETAIL STORES,38.57,Pound Sterling (826),1,38.57,Debit,74313225272000111939931,2015-10-02,GLOUCESTER CC
Gloucester City Council,23UE,BUSINESS PLANNING & PERFORMANC,RL500,FEES FOR SERVICES RECEIVED,5350,2015-10-01,2015-09-30,,Amazon UK Marketplace,800-279-6620,REDACTED,471565******3318,5942,BOOK STORES,43.73,Pound Sterling (826),1,43.73,Debit,74313225273000678164658,2015-10-02,GLOUCESTER CC
Gloucester City Council,23UE,BUSINESS PLANNING & PERFORMANC,RL500,FEES FOR SERVICES RECEIVED,5350,2015-10-02,2015-10-01,,Amazon UK Marketplace,800-279-6620,REDACTED,471565******3318,5999,MISCELLANEOUS AND RETAIL STORES,24.79,Pound Sterling (826),1,24.79,Debit,74313225274000109270347,2015-10-02,GLOUCESTER CC
Gloucester City Council,23UE,CLIENT REVS & BENS CONTRACT,RT240,COURT FEES,5358,2015-09-03,2015-09-02,,HMCOURTS-SERVICE.G,1452420100,REDACTED,471565******5409,9222,FINES,1983,Pound Sterling (826),1,1983,Debit,74579155246000575300555,2015-10-02,GLOUCESTER CC
Gloucester City Council,23UE,FINANCIAL SERVICES,RT200,PUBLIC TRANSPORTATION,4061,2015-09-07,2015-09-04,,TRAINLINE,RAIL TICKETS,REDACTED,471565******5409,4112,PASSENGER RAILWAYS,84.15,Pound Sterling (826),1,84.15,Debit,74998865247535591649168,2015-10-02,GLOUCESTER CC
Gloucester City Council,23UE,TOURISM MARKETING,LT100,FEES FOR SERVICES RECEIVED,5350,2015-09-22,2015-09-21,,MERCHANT RENTALS LTD,HAYDOCK,REDACTED,471565******5409,7394,EQUIP RENTALS & LEASING SERVICES  TOOL RENTAL  FURNITURE RENTAL,9.48,Pound Sterling (826),1,9.48,Debit,74678585265060226829406,2015-10-02,GLOUCESTER CC
Gloucester City Council,23UE,FINANCIAL SERVICES,RT200,PUBLIC TRANSPORTATION,4061,2015-09-22,2015-09-21,,TRAINLINE,RAIL TICKETS,REDACTED,471565******5409,4112,PASSENGER RAILWAYS,-53,Pound Sterling (826),1,-53,Credit,74998865264537879258991,2015-10-02,GLOUCESTER CC
Gloucester City Council,23UE,CLIENT REVS & BENS CONTRACT,RT240,COURT FEES,5358,2015-10-02,2015-10-01,,HMCOURTS-SERVICE.G,1452420100,REDACTED,471565******5409,9222,FINES,2433,Pound Sterling (826),1,2433,Debit,74579155275003377154182,2015-10-02,GLOUCESTER CC
Gloucester City Council,23UE,FOLK MUSEUM,LM210,CATERING PROVISIONS -FOOD,5110,2015-10-02,2015-10-01,,HANCOCK CASH AND CARRY LT,LOUGHBOROUGH,REDACTED,471565******5409,5300,WHOLESALE CLUBS,193.93,Pound Sterling (826),1,193.93,Debit,74463655274892755135188,2015-10-02,GLOUCESTER CC
